fUSD/lending_fUSD_20250306
["ID","MTS","AMOUNT","RATE_DAILY","PERIOD"]
[355549356,1741265455248,-1422.4,0.00012049,2]
[355549357,1741265455258,-748.01,0.00012049,2]
[355549358,1741265455267,-500.0,0.00012049,2]
[355549359,1741265455276,-500.0,0.00012049,2]
[355549360,1741265455285,-500.0,0.00012049,2]
[355549361,1741265455294,-3096.47,0.00012049,2]
[355549362,1741265455302,-3443.42,0.00012049,2]
[355549363,1741265455311,-1261.38,0.00012049,2]
[355549364,1741265455319,-570.44,0.00012049,2]
[355549365,1741265455327,-500.0,0.00012049,2]
[355549366,1741265455335,-500.0,0.00012049,2]
[355549367,1741265455346,-1460.35,0.00012049,2]
[355549368,1741265455359,-1747.71,0.00012049,2]
[355549369,1741265455373,-1763.07,0.00012049,2]
[355549370,1741265455381,-1124.9,0.00012049,2]
[355549371,1741265455389,-500.0,0.00012049,2]
[355549372,1741265455398,-910.19,0.00012049,2]
[355549373,1741265455407,-4329.72,0.00012049,2]
[355549374,1741265455512,-500.0,0.00012049,2]
[355549375,1741265455522,-811.48,0.00012049,2]
[355549376,1741265455532,-1618.33,0.00012049,2]
[355549377,1741265455541,-500.0,0.00012049,2]
[355549378,1741265455551,-500.0,0.00012049,2]
[355549379,1741265455561,-500.0,0.00012049,2]
[355549380,1741265455570,-1185.79,0.00012049,2]
[355549381,1741265455580,-1115.41,0.00012049,2]
[355549382,1741265455589,-1592.99,0.00012049,2]
[355549383,1741265455599,-755.34,0.00012049,2]
[355549384,1741265455609,-500.0,0.00012049,2]
[355549385,1741265455620,-1506.42,0.00012049,2]
[355549386,1741265455629,-2247.62,0.00012049,2]
[355549387,1741265455639,-943.07,0.00012049,2]
[355549388,1741265455648,-2865.5,0.00012049,2]
[355549389,1741265455658,-775.27,0.00012049,2]
[355549390,1741265455668,-500.0,0.00012049,2]
[355549391,1741265455677,-500.0,0.00012049,2]
[355549392,1741265455687,-500.0,0.00012049,2]
[355549393,1741265455696,-1224.62,0.00012049,2]
[355549394,1741265455710,-529.09,0.00012049,2]
[355549395,1741265455719,-1086.02,0.00012049,2]
[355549396,1741265455729,-6666.46,0.00012049,2]
[355549397,1741265455738,-500.0,0.00012049,2]
[355549398,1741265455752,-1381.38,0.00012049,2]
[355549399,1741265455762,-500.0,0.00012049,2]
[355549400,1741265455773,-500.0,0.00012049,2]
[355549401,1741265455783,-713.53,0.00012049,2]
[355549402,1741265455793,-1031.38,0.00012049,2]
[355549403,1741265455802,-500.0,0.00012049,2]
[355549404,1741265455812,-1198.9,0.00012049,2]
[355549405,1741265455822,-1657.59,0.00012049,2]
[355549406,1741265455832,-500.0,0.00012049,2]
[355549407,1741265455841,-500.0,0.00012049,2]
[355549408,1741265455851,-1016.8,0.00012049,2]
[355549409,1741265455860,-500.0,0.00012049,2]
[355549410,1741265455870,-500.0,0.00012049,2]
[355549411,1741265455880,-470.764001,0.00012049,2]
[355549412,1741265455889,-500.0,0.00012049,2]
[355549413,1741265455898,-470.764001,0.00012049,2]
[355549414,1741265455908,-1519.79,0.00012049,2]
[355549415,1741265455918,-1106.55,0.00012049,2]
[355549416,1741265455927,-578.71,0.00012049,2]
[355549417,1741265455936,-927.0,0.00012049,2]
[355549418,1741265455945,-500.0,0.00012049,2]
[355549419,1741265455954,-500.0,0.0001205,2]
[355549420,1741265455963,-384.35,0.0001205,2]
[355549421,1741265455972,-500.0,0.0001205,2]
[355549422,1741265455981,-163.84,0.0001205,2]
[355549423,1741265455990,-500.0,0.0001205,2]
[355549424,1741265456000,-500.0,0.0001205,2]
[355549425,1741265456009,-500.0,0.0001205,2]
[355549426,1741265456018,-500.0,0.0001205,2]
[355549427,1741265456027,-500.0,0.0001205,2]
[355549428,1741265456036,-406.26,0.0001205,2]
[355549429,1741265456045,-500.0,0.0001205,2]
[355549430,1741265456054,-500.0,0.0001205,2]
[355549431,1741265456063,-500.0,0.0001205,2]
[355549432,1741265456072,-437.99,0.0001205,2]
[355549433,1741265456081,-540.63,0.0001205,2]
[355549434,1741265456090,-500.0,0.0001205,2]
[355549435,1741265456100,-500.0,0.0001205,2]
[355549436,1741265456109,-500.0,0.0001205,2]
[355549437,1741265456118,-550.71,0.0001205,2]
[355549438,1741265456127,-500.0,0.0001205,2]
[355549439,1741265456137,-207.5,0.0001205,2]
[355549440,1741265456146,-500.0,0.0001205,2]
[355549441,1741265456159,-500.0,0.0001205,2]
[355549442,1741265456169,-485.20599043,0.0001205,2]
[355549443,1741265456179,-500.0,0.0001205,2]
[355549444,1741265456189,-500.0,0.0001205,2]
[355549445,1741265456198,-500.0,0.0001205,2]
[355549446,1741265456208,-500.0,0.0001205,2]
[355549447,1741265456217,-500.0,0.0001205,2]
[355549448,1741265456227,-586.7,0.0001205,2]
[355549449,1741265456236,-352.89,0.0001205,2]
[355549450,1741265456246,-379.89,0.0001205,2]
[355549451,1741265456256,-613.35,0.0001205,2]
[355549452,1741265456266,-499.12,0.0001205,2]
[355549453,1741265456276,-500.0,0.0001205,2]
[355549454,1741265456287,-476.14737505,0.0001205,2]
[355549455,1741265456296,-350.0,0.0001205,2]
[355549456,1741265456306,-500.0,0.0001205,2]
[355549457,1741265456316,-500.0,0.0001205,2]
[355549458,1741265456326,-500.0,0.0001205,2]
[355549459,1741265456335,-500.0,0.0001205,2]
[355549460,1741265456346,-500.0,0.0001205,2]
[355549461,1741265456356,-500.0,0.0001205,2]
[355549462,1741265456365,-500.0,0.0001205,2]
[355549463,1741265456375,-500.0,0.0001205,2]
[355549464,1741265456385,-185.79,0.0001205,2]
[355549465,1741265456394,-421.88,0.0001205,2]
[355549466,1741265456404,-500.0,0.0001205,2]
[355549467,1741265456413,-500.0,0.0001205,2]
[355549468,1741265456423,-556.54,0.0001205,2]
[355549469,1741265456433,-500.0,0.0001205,2]
[355549470,1741265456442,-260.85,0.0001205,2]
[355549471,1741265456452,-500.0,0.0001205,2]
[355549472,1741265456462,-500.0,0.0001205,2]
[355549473,1741265456471,-520.01,0.0001205,2]
[355549474,1741265456481,-549.91,0.0001205,2]
[355549475,1741265456490,-500.0,0.0001205,2]
[355549476,1741265456500,-507.22122526,0.0001205,2]
[355549477,1741265456510,-500.0,0.0001205,2]
[355549478,1741265456519,-190.19,0.0001205,2]
[355549479,1741265456529,-211.29,0.0001205,2]
[355549480,1741265456538,-500.0,0.0001205,2]
[355549481,1741265456548,-500.0,0.0001205,2]
[355549482,1741265456557,-500.0,0.0001205,2]
[355549483,1741265456567,-151.0,0.0001205,2]
[355549484,1741265456576,-500.0,0.0001205,2]
[355549485,1741265456585,-500.0,0.0001205,2]
[355549486,1741265456594,-630.22,0.0001205,2]
[355549487,1741265456604,-500.0,0.0001205,2]
[355549488,1741265456614,-403.23,0.0001205,2]
[355549489,1741265456624,-500.0,0.0001205,2]
[355549490,1741265456634,-500.0,0.0001205,2]
[355549491,1741265456643,-500.0,0.0001205,2]
[355549492,1741265456652,-500.0,0.0001205,2]
[355549493,1741265456662,-444.01,0.0001205,2]
[355549494,1741265456671,-500.0,0.0001205,2]
[355549495,1741265456680,-500.0,0.0001205,2]
[355549496,1741265456692,-500.0,0.0001205,2]
[355549497,1741265456707,-500.0,0.0001205,2]
[355549498,1741265456716,-500.0,0.0001205,2]
[355549499,1741265456726,-500.0,0.0001205,2]
[355549500,1741265456736,-500.0,0.0001205,2]
[355549501,1741265456747,-500.0,0.0001205,2]
[355549502,1741265456757,-709.62,0.0001205,2]
[355549503,1741265456767,-500.0,0.0001205,2]
[355549504,1741265456777,-255.68,0.0001205,2]
[355549505,1741265456786,-500.0,0.0001205,2]
[355549506,1741265456795,-500.0,0.0001205,2]
[355549507,1741265456805,-500.0,0.0001205,2]
[355549508,1741265456814,-500.0,0.0001205,2]
[355549509,1741265456823,-504.36023459,0.0001205,2]
[355549510,1741265456832,-500.0,0.0001205,2]
[355549511,1741265456841,-500.0,0.0001205,2]
[355549512,1741265456850,-500.0,0.0001205,2]
[355549513,1741265456859,-505.61360362,0.0001205,2]
[355549514,1741265456869,-500.0,0.0001205,2]
[355549515,1741265456878,-500.0,0.0001205,2]
[355549516,1741265456887,-504.91564672,0.0001205,2]
[355549517,1741265456897,-500.0,0.0001205,2]
[355549518,1741265456906,-512.93,0.0001205,2]
[355549519,1741265456916,-506.92121524,0.0001205,2]
[355549520,1741265456926,-613.74,0.0001205,2]
[355549521,1741265456935,-500.0,0.0001205,2]
[355549522,1741265456944,-500.0,0.0001205,2]
[355549523,1741265456954,-500.0,0.0001205,2]
[355549524,1741265456963,-248.48898504,0.0001205,2]
[355549525,1741265456973,-505.09394784,0.0001205,2]
[355549526,1741265456982,-500.0,0.0001205,2]
[355549527,1741265456991,-189.07,0.0001205,2]
[355549528,1741265457002,-500.0,0.0001205,2]
[355549529,1741265457011,-500.0,0.0001205,2]
[355549530,1741265457022,-500.0,0.0001205,2]
[355549531,1741265457032,-775.2,0.0001205,2]
[355549532,1741265457041,-500.0,0.0001205,2]
[355549533,1741265457051,-548.36539963,0.0001205,2]
[355549534,1741265457060,-500.0,0.0001205,2]
[355549535,1741265457069,-570.88512701,0.0001205,2]
[355549536,1741265457079,-500.0,0.0001205,2]
[355549537,1741265457088,-500.0,0.0001205,2]
[355549538,1741265457098,-508.03529197,0.0001205,2]
[355549539,1741265457107,-500.0,0.0001205,2]
[355549540,1741265457117,-500.0,0.0001205,2]
[355549541,1741265457126,-500.0,0.0001205,2]
[355549542,1741265457136,-500.0,0.0001205,2]
[355549543,1741265457145,-500.0,0.0001205,2]
[355549544,1741265457155,-500.0,0.0001205,2]
[355549545,1741265457165,-205.73,0.0001205,2]
[355549546,1741265457174,-500.0,0.0001205,2]
[355549547,1741265457183,-500.0,0.0001205,2]
[355549548,1741265457193,-366.8600045,0.0001205,2]
[355549549,1741265457202,-500.0,0.0001205,2]
[355549550,1741265457212,-500.0,0.0001205,2]
[355549551,1741265457222,-284.81,0.0001205,2]
[355549552,1741265457231,-500.0,0.0001205,2]
[355549553,1741265457242,-508.01637177,0.0001205,2]
[355549554,1741265457253,-505.65090687,0.0001205,2]
[355549555,1741265457263,-500.0,0.0001205,2]
[355549556,1741265457272,-562.50471194,0.0001205,2]
[355549557,1741265457282,-500.0,0.0001205,2]
[355549558,1741265457291,-289.19,0.0001205,2]
[355549559,1741265457300,-500.0,0.0001205,2]
[355549560,1741265457310,-500.0,0.0001205,2]
[355549561,1741265457319,-548.13409812,0.0001205,2]
[355549562,1741265457329,-332.06,0.0001205,2]
[355549563,1741265457340,-500.0,0.0001205,2]
[355549564,1741265457350,-500.0,0.0001205,2]
[355549565,1741265457365,-773.48,0.0001205,2]
[355549566,1741265457375,-500.0,0.0001205,2]
[355549567,1741265457385,-500.0,0.0001205,2]
[355549568,1741265457395,-500.0,0.0001205,2]
[355549569,1741265457405,-753.5,0.0001205,2]
[355549570,1741265457415,-500.0,0.0001205,2]
[355549571,1741265457425,-475.8704954,0.0001205,2]
[355549572,1741265457434,-4681.89,0.0001205,2]
[355549573,1741265457444,-500.0,0.0001205,2]
[355549574,1741265457453,-500.0,0.0001205,2]
[355549575,1741265457464,-1081.39,0.0001205,2]
[355549576,1741265457474,-500.0,0.0001205,2]
[355549577,1741265457485,-580.54,0.0001205,2]
[355549578,1741265457500,-1657.94,0.0001205,2]
[355549579,1741265457510,-500.0,0.0001205,2]
[355549580,1741265457519,-10684.56,0.0001205,2]
[355549581,1741265457529,-500.0,0.0001205,2]
[355549582,1741265457538,-500.0,0.0001205,2]
[355549583,1741265457547,-445.46,0.0001205,2]
[355549584,1741265457557,-5641.87,0.0001205,2]
[355549585,1741265457566,-559.97,0.0001205,2]
[355549586,1741265457575,-500.0,0.0001205,2]
[355549587,1741265457585,-907.77,0.0001205,2]
[355549588,1741265457595,-500.0,0.0001205,2]
[355549589,1741265457605,-500.0,0.0001205,2]
[355549590,1741265457614,-1487.35,0.0001205,2]
[355549591,1741265457623,-500.0,0.0001205,2]
[355549592,1741265457633,-9146.07,0.0001205,2]
[355549593,1741265457643,-500.0,0.0001205,2]
[355549594,1741265457652,-637.82,0.0001205,2]
[355549595,1741265457661,-500.0,0.0001205,2]
[355549596,1741265457671,-1109.51,0.0001205,2]
[355549597,1741265457680,-2419.53,0.0001205,2]
[355549598,1741265457691,-500.0,0.0001205,2]
[355549599,1741265457700,-500.0,0.0001205,2]
[355549600,1741265457713,-500.0,0.0001205,2]
[355549601,1741265457722,-1000.0,0.0001205,2]
[355549602,1741265457731,-2399.0,0.0001205,2]
[355549603,1741265457741,-1413.36,0.0001205,2]
[355549604,1741265457753,-500.0,0.0001205,2]
[355549605,1741265457763,-1224.17,0.0001205,2]
[355549606,1741265457772,-500.0,0.0001205,2]
[355549607,1741265457783,-500.0,0.0001205,2]
[355549608,1741265457793,-470.764001,0.0001205,2]
[355549609,1741265457804,-625.18,0.0001205,2]
[355549610,1741265457814,-470.763992,0.0001205,2]
[355549611,1741265457823,-500.0,0.0001205,2]
[355549612,1741265457833,-500.0,0.0001205,2]
[355549613,1741265457842,-1992.83,0.0001205,2]
[355549614,1741265457853,-509.12802937,0.00012051,2]
[355549615,1741265457863,-4030.76,0.00012055,2]
[355549616,1741265457872,-1000.0,0.00012061,2]
[355549617,1741265457882,-250.0,0.00012063,2]
[355549618,1741265457891,-3188.0,0.00012068,2]
[355549619,1741265457901,-875.0,0.00012068,2]
[355549620,1741265457912,-150.0,0.00012069,2]
[355549621,1741265457921,-150.0,0.00012069,2]
[355549622,1741265457932,-2508.80368989,0.00012072,2]
[355549623,1741265457941,-5006.29112729,0.00012073,2]
[355549624,1741265457951,-4907.1488788,0.00012084,2]
[355549625,1741265457960,-3188.0,0.00012095,2]
[355549626,1741265457969,-875.0,0.00012095,2]
[355549627,1741265457978,-826.29,0.00012118,2]
[355549628,1741265457988,-3188.0,0.00012123,2]
[355549629,1741265457999,-875.0,0.00012123,2]
[355549630,1741265458009,-155.0,0.00012129,3]
[355549631,1741265458019,-2508.80368989,0.00012141,2]
[355549632,1741265458029,-3188.0,0.0001215,2]
[355549633,1741265458039,-875.0,0.0001215,2]
[355549634,1741265458048,-255.0,0.00012151,2]
[355549635,1741265458058,-3188.0,0.00012177,2]
[355549636,1741265458068,-875.0,0.00012177,2]
[355549637,1741265458078,-167.36,0.00012192,2]
[355549638,1741265458088,-3188.0,0.00012205,2]
[355549639,1741265458098,-875.0,0.00012205,2]
[355549640,1741265458109,-2508.80368989,0.0001221,2]
[355549641,1741265458118,-4907.1488788,0.0001222,2]
[355549642,1741265458128,-3188.0,0.00012232,2]
[355549643,1741265458137,-875.0,0.00012232,2]
[355549644,1741265458147,-1000.0,0.00012237,2]
[355549645,1741265458157,-3188.0,0.0001226,2]
[355549646,1741265458166,-875.0,0.0001226,2]
[355549647,1741265458176,-2508.80368989,0.00012279,2]
[355549648,1741265458186,-3188.0,0.00012287,2]
[355549649,1741265458196,-875.0,0.00012287,2]
[355549650,1741265458205,-13100.0,0.000123,4]
[355549651,1741265458215,-3188.0,0.00012314,2]
[355549652,1741265458224,-875.0,0.00012314,2]
[355549653,1741265458233,-727.96,0.00012322,2]
[355549654,1741265458242,-590.91,0.00012322,2]
[355549655,1741265458254,-500.0,0.00012322,2]
[355549656,1741265458263,-1294.04,0.00012322,2]
[355549657,1741265458272,-870.64,0.00012322,2]
[355549658,1741265458281,-1004.28,0.00012322,2]
[355549659,1741265458291,-500.0,0.00012322,2]
[355549660,1741265458301,-1489.08,0.00012322,2]
[355549661,1741265458311,-1183.14,0.00012322,2]
[355549662,1741265458322,-1580.5,0.00012322,2]
[355549663,1741265458333,-1331.79,0.00012322,2]
[355549664,1741265458344,-990.62,0.00012322,2]
[355549665,1741265458354,-800.89,0.00012322,2]
[355549666,1741265458363,-4238.81,0.00012322,2]
[355549667,1741265458373,-500.0,0.00012322,2]
[355549668,1741265458384,-1262.39,0.00012322,2]
[355549669,1741265458393,-654.61,0.00012322,2]
[355549670,1741265458401,-1247.02,0.00012322,2]
[355549671,1741265458412,-595.92,0.00012322,2]
[355549672,1741265458424,-500.0,0.00012322,2]
[355549673,1741265458434,-1164.16,0.00012322,2]
[355549674,1741265458444,-4314.28,0.00012322,2]
[355549675,1741265458454,-285.62297935,0.00012322,2]
[355549676,1741265458463,-938.84,0.00012322,2]
[355549677,1741265458473,-662.03,0.00012322,2]
[355549678,1741265458482,-730.37,0.00012322,2]
[355549679,1741265458492,-1288.39,0.00012322,2]
[355549680,1741265458503,-500.0,0.00012322,2]
[355549681,1741265458513,-500.0,0.00012322,2]
[355549682,1741265458522,-500.0,0.00012323,2]
[355549683,1741265458531,-680.21,0.00012323,2]
[355549684,1741265458542,-500.0,0.00012323,2]
[355549685,1741265458552,-750.34,0.00012323,2]
[355549686,1741265458562,-500.0,0.00012323,2]
[355549687,1741265458571,-500.0,0.00012323,2]
[355549688,1741265458581,-595.78,0.00012323,2]
[355549689,1741265458590,-500.0,0.00012323,2]
[355549690,1741265458600,-500.0,0.00012323,2]
[355549691,1741265458611,-500.0,0.00012323,2]
[355549692,1741265458621,-563.64,0.00012323,2]
[355549693,1741265458631,-500.0,0.00012323,2]
[355549694,1741265458640,-602.52,0.00012323,2]
[355549695,1741265458650,-270.66,0.00012323,2]
[355549696,1741265458660,-761.72,0.00012323,2]
[355549697,1741265458669,-712.747738,0.00012323,2]
[355549698,1741265458679,-500.0,0.00012323,2]
[355549699,1741265458689,-1085.79583,0.00012323,2]
[355549700,1741265458699,-500.0,0.00012323,2]
[355549701,1741265458712,-500.0,0.00012323,2]
[355549702,1741265458721,-500.0,0.00012323,2]
[355549703,1741265458731,-746.03,0.00012323,2]
[355549704,1741265458741,-500.0,0.00012323,2]
[355549705,1741265458753,-809.97,0.00012323,2]
[355549706,1741265458763,-500.0,0.00012323,2]
[355549707,1741265458773,-500.0,0.00012323,2]
[355549708,1741265458784,-871.51,0.00012323,2]
[355549709,1741265458795,-500.0,0.00012323,2]
[355549710,1741265458805,-510.08,0.00012323,2]
[355549711,1741265458815,-500.0,0.00012323,2]
[355549712,1741265458825,-500.0,0.00012323,2]
[355549713,1741265458835,-500.0,0.00012323,2]
[355549714,1741265458844,-781.91,0.00012323,2]
[355549715,1741265458855,-832.93,0.00012323,2]
[355549716,1741265458866,-286.42679333,0.00012323,2]
[355549717,1741265458875,-500.0,0.00012323,2]
[355549718,1741265458885,-907.3,0.00012323,2]
[355549719,1741265458895,-500.0,0.00012323,2]
[355549720,1741265458905,-649.43,0.00012323,2]
[355549721,1741265458915,-785.96,0.00012323,2]
[355549722,1741265458925,-641.41,0.00012323,2]
[355549723,1741265458935,-190.89746634,0.00012323,2]
[355549724,1741265458944,-500.0,0.00012323,2]
[355549725,1741265458954,-500.0,0.00012323,2]
[355549726,1741265458964,-1301.7,0.00012323,2]
[355549727,1741265458973,-668.3,0.00012323,2]
[355549728,1741265458983,-773.48,0.00012323,2]
[355549729,1741265458993,-694.21,0.00012323,2]
[355549730,1741265459005,-1217.82,0.00012323,2]
[355549731,1741265459016,-2884.65,0.00012323,2]
[355549732,1741265459026,-569.81,0.00012323,2]
[355549733,1741265459036,-665.17,0.00012323,2]
[355549734,1741265459047,-500.0,0.00012323,2]
[355549735,1741265459057,-536.94,0.00012323,2]
[355549736,1741265459067,-957.77,0.00012323,2]
[355549737,1741265459077,-500.0,0.00012323,2]
[355549738,1741265459087,-2332.8,0.00012323,2]
[355549739,1741265459097,-1967.2,0.00012323,2]
[355549740,1741265459107,-3000.65,0.00012323,2]
[355549741,1741265459117,-775.58,0.00012323,2]
[355549742,1741265459127,-2779.69,0.00012323,2]
[355549743,1741265459138,-1272.16,0.00012323,2]
[355549744,1741265459148,-1363.55,0.00012323,2]
[355549745,1741265459158,-2086.38,0.00012323,2]
[355549746,1741265459168,-665.52,0.00012323,2]
[355549747,1741265459178,-589.17,0.00012323,2]
[355549748,1741265459188,-1422.4,0.00012323,2]
[355549749,1741265459198,-748.01,0.00012323,2]
[355549750,1741265459209,-350.35610415,0.00012323,2]
[355549751,1741265459219,-500.0,0.00012323,2]
[355549752,1741265459229,-469.05678963,0.00012323,2]
[355549753,1741265459239,-3096.47,0.00012323,2]
[355549754,1741265459249,-3443.42,0.00012323,2]
[355549755,1741265459260,-1261.38,0.00012323,2]
[355549756,1741265459270,-570.44,0.00012323,2]
[355549757,1741265459281,-500.0,0.00012323,2]
[355549758,1741265459291,-500.0,0.00012323,2]
[355549759,1741265459302,-1460.35,0.00012323,2]
[355549760,1741265459312,-1747.71,0.00012323,2]
[355549761,1741265459322,-1763.07,0.00012323,2]
[355549762,1741265459332,-1124.9,0.00012323,2]
[355549763,1741265459342,-500.0,0.00012323,2]
[355549764,1741265459352,-910.19,0.00012323,2]
[355549765,1741265459362,-4329.72,0.00012323,2]
[355549766,1741265459372,-500.0,0.00012323,2]
[355549767,1741265459382,-811.48,0.00012323,2]
[355549768,1741265459392,-1618.33,0.00012323,2]
[355549769,1741265459402,-500.0,0.00012323,2]
[355549770,1741265459412,-500.0,0.00012323,2]
[355549771,1741265459422,-500.0,0.00012323,2]
[355549772,1741265459431,-1185.79,0.00012323,2]
[355549773,1741265459441,-1115.41,0.00012323,2]
[355549774,1741265459450,-1592.99,0.00012323,2]
[355549775,1741265459460,-755.34,0.00012323,2]
[355549776,1741265459470,-500.0,0.00012323,2]
[355549777,1741265459480,-1506.42,0.00012323,2]
[355549778,1741265459489,-2247.62,0.00012323,2]
[355549779,1741265459501,-943.07,0.00012323,2]
[355549780,1741265459512,-2865.5,0.00012323,2]
[355549781,1741265459522,-775.27,0.00012323,2]
[355549782,1741265459532,-500.0,0.00012323,2]
[355549783,1741265459542,-500.0,0.00012323,2]
[355549784,1741265459552,-500.0,0.00012323,2]
[355549785,1741265459563,-1224.62,0.00012323,2]
[355549786,1741265459573,-529.09,0.00012323,2]
[355549787,1741265459583,-1086.02,0.00012323,2]
[355549788,1741265459592,-6666.46,0.00012323,2]
[355549789,1741265459603,-500.0,0.00012323,2]
[355549790,1741265459613,-1381.38,0.00012323,2]
[355549791,1741265459623,-500.0,0.00012323,2]
[355549792,1741265459633,-500.0,0.00012323,2]
[355549793,1741265459643,-713.53,0.00012323,2]
[355549794,1741265459653,-1031.38,0.00012323,2]
[355549795,1741265459663,-500.0,0.00012323,2]
[355549796,1741265459674,-1198.9,0.00012323,2]
[355549797,1741265459684,-1657.59,0.00012323,2]
[355549798,1741265459695,-268.07,0.00012323,2]
[355549799,1741265459709,-500.0,0.00012323,2]
[355549800,1741265459720,-1016.8,0.00012323,2]
[355549801,1741265459730,-500.0,0.00012323,2]
[355549802,1741265459741,-500.0,0.00012323,2]
[355549803,1741265459751,-500.0,0.00012323,2]
[355549804,1741265459762,-1519.79,0.00012323,2]
[355549805,1741265459773,-1106.55,0.00012323,2]
[355549806,1741265459784,-578.71,0.00012323,2]
[355549807,1741265459795,-927.0,0.00012323,2]
[355549808,1741265459805,-500.0,0.00012323,2]
[355549809,1741265459815,-500.0,0.00012324,2]
[355549810,1741265459826,-500.0,0.00012324,2]
[355549811,1741265459836,-500.0,0.00012324,2]
[355549812,1741265459846,-491.17,0.00012324,2]
[355549813,1741265459857,-206.03,0.00012324,2]
[355549814,1741265459867,-500.0,0.00012324,2]
[355549815,1741265459877,-582.76,0.00012324,2]
[355549816,1741265459887,-621.37,0.00012324,2]
[355549817,1741265459897,-500.0,0.00012324,2]
[355549818,1741265459908,-500.0,0.00012324,2]
[355549819,1741265459918,-500.0,0.00012324,2]
[355549820,1741265459929,-433.64,0.00012324,2]
[355549821,1741265459939,-500.0,0.00012324,2]
[355549822,1741265459950,-500.0,0.00012324,2]
[355549823,1741265459960,-500.0,0.00012324,2]
[355549824,1741265459971,-500.0,0.00012324,2]
[355549825,1741265459981,-500.0,0.00012324,2]
[355549826,1741265459991,-167.2,0.00012324,2]
[355549827,1741265460002,-500.0,0.00012324,2]
[355549828,1741265460013,-500.0,0.00012324,2]
[355549829,1741265460024,-350.0,0.00012324,2]
[355549830,1741265460035,-500.0,0.00012324,2]
[355549831,1741265460045,-500.0,0.00012324,2]
[355549832,1741265460055,-500.0,0.00012324,2]
[355549833,1741265460066,-500.0,0.00012324,2]
[355549834,1741265460078,-500.0,0.00012324,2]
[355549835,1741265460089,-500.0,0.00012324,2]
[355549836,1741265460100,-500.0,0.00012324,2]
[355549837,1741265460111,-500.0,0.00012324,2]
[355549838,1741265460122,-500.0,0.00012324,2]
[355549839,1741265460132,-500.0,0.00012324,2]
[355549840,1741265460142,-556.54,0.00012324,2]
[355549841,1741265460153,-500.0,0.00012324,2]
[355549842,1741265460163,-500.0,0.00012324,2]
[355549843,1741265460173,-513.58368778,0.00012324,2]
[355549844,1741265460184,-520.01,0.00012324,2]
[355549845,1741265460194,-500.0,0.00012324,2]
[355549846,1741265460205,-500.0,0.00012324,2]
[355549847,1741265460216,-500.0,0.00012324,2]
[355549848,1741265460227,-500.0,0.00012324,2]
[355549849,1741265460238,-500.0,0.00012324,2]
[355549850,1741265460251,-191.47,0.00012324,2]
[355549851,1741265460262,-500.0,0.00012324,2]
[355549852,1741265460273,-500.0,0.00012324,2]
[355549853,1741265460284,-500.0,0.00012324,2]
[355549854,1741265460295,-500.0,0.00012324,2]
[355549855,1741265460305,-500.0,0.00012324,2]